fUSD/lending_fUSD_20260318
["ID","MTS","AMOUNT","RATE_DAILY","PERIOD"]
[408521006,1773818864474,-1000.0,0.00047739,120]
[408521007,1773818864501,-268.93593079,0.00047739,120]
[408521008,1773818864526,-551.48260397,0.00047739,31]
[408521009,1773818864550,-1000.0,0.00047739,31]
[408521010,1773818864575,-1000.0,0.00047739,31]
[408521011,1773818864599,-1000.0,0.00047739,31]
[408521012,1773818864622,-1000.0,0.00047739,31]
[408521013,1773818864646,-1000.0,0.00047739,31]
[408521014,1773818864671,-1000.0,0.00047739,31]
[408521015,1773818864698,-1000.0,0.00047739,31]
[408521016,1773818864724,-1000.0,0.00047739,31]
[408521017,1773818864749,-1000.0,0.00047739,31]
[408521018,1773818864774,-1000.0,0.00047739,31]
[408521019,1773818864799,-1000.0,0.00047739,31]
[408521020,1773818864824,-1000.0,0.00047739,31]
[408521021,1773818864849,-1000.0,0.00047739,31]
[408521022,1773818864874,-754.25364229,0.00047739,31]
[408521023,1773818864900,-496.94080846,0.00047739,120]
[408521024,1773818864924,-500.0,0.00047739,120]
[408521025,1773818864953,-591.24332718,0.00047739,60]
[408521026,1773818864979,-1000.0,0.00047739,30]
[408521027,1773818865004,-100000.0,0.00047739,120]
[408521028,1773818865031,-100000.0,0.00047739,120]
[408521029,1773818865056,-1018.65836098,0.00047739,90]
[408521030,1773818865083,-207.55269368,0.00047739,91]
[408521031,1773818865107,-443.11350204,0.00047739,120]
[408521032,1773818865143,-312.6463035,0.00047739,60]
[408521033,1773818865170,-1314.1939562,0.00047739,120]
[408521034,1773818865195,-291.91588917,0.00047739,30]
[408521035,1773818865220,-891.76471792,0.00047739,30]
[408521036,1773818865246,-1217.63038453,0.00047739,30]
[408521037,1773818865273,-214.86917676,0.00047739,120]
[408521038,1773818865459,-244.20302352,0.00047739,120]
[408521039,1773818865485,-418.59208255,0.00047739,120]
[408521040,1773818865510,-277.01360924,0.00047739,90]
[408521041,1773818865535,-524.09431437,0.00047739,120]
[408521042,1773818865559,-437.09839458,0.00047739,120]
[408521043,1773818865584,-789.28285104,0.00047739,120]
[408521044,1773818865610,-722.42041929,0.00047739,30]
[408521045,1773818865635,-166.41955829,0.00047739,120]
[408521046,1773818865661,-1132.25909344,0.00047739,120]
[408521047,1773818865685,-350.04263229,0.00047739,30]
[408521048,1773818865710,-231.35518106,0.00047739,120]
[408521049,1773818865737,-334.02747879,0.00047739,120]
[408521050,1773818865763,-150.16755092,0.00047739,120]
[408521051,1773818865791,-380.59361399,0.00047739,120]
[408521052,1773818865816,-1222.98797858,0.00047739,120]
[408521053,1773818865847,-1285.56038076,0.00047739,31]
[408521054,1773818865874,-157.45295047,0.00047739,120]
[408521055,1773818865900,-336.80897572,0.00047739,120]
[408521056,1773818865930,-220.81123954,0.00047739,120]
[408521057,1773818865960,-163.57034185,0.00047739,120]
[408521058,1773818865987,-169.65705834,0.00047739,120]
[408521059,1773818866012,-157.16693305,0.00047739,120]
[408521060,1773818866036,-279.00542261,0.00047739,120]
[408521061,1773818866062,-206.31407732,0.00047739,120]
[408521062,1773818866088,-1504.73070783,0.00047739,120]
[408521063,1773818866113,-886.92641144,0.00047739,120]
[408521064,1773818866138,-192.73986229,0.00047739,30]
[408521065,1773818866164,-156.11659855,0.00047739,120]
[408521066,1773818866188,-204.53482807,0.00047739,120]
[408521067,1773818866211,-387.81120168,0.00047739,120]
[408521068,1773818866235,-564.32861487,0.00047739,120]
[408521069,1773818866260,-152.06947646,0.00047739,60]
[408521070,1773818866284,-295.41925406,0.00047739,120]
[408521071,1773818866310,-244.81858185,0.00047739,120]
[408521072,1773818866335,-410.48124564,0.00047739,120]
[408521073,1773818866359,-163.48624694,0.00047739,120]
[408521074,1773818866385,-203.81167454,0.00047739,30]
[408521075,1773818866410,-892.56193795,0.00047739,30]
[408521076,1773818866436,-189.82962276,0.00047739,120]
[408521077,1773818866461,-273.69369266,0.00047739,30]
[408521078,1773818866488,-553.33462419,0.00047739,30]
[408521079,1773818866514,-1643.67183843,0.00047739,30]
[408521080,1773818866538,-367.87594288,0.00047739,30]
[408521081,1773818866562,-488.53564634,0.00047739,120]
[408521082,1773818866586,-416.52438759,0.00047739,30]
[408521083,1773818866612,-349.30961494,0.00047739,120]
[408521084,1773818866637,-515.02951981,0.00047739,30]
[408521085,1773818866663,-158.92390762,0.00047739,120]
[408521086,1773818866688,-449.7535211,0.00047739,120]
[408521087,1773818866712,-370.57473478,0.00047739,30]
[408521088,1773818866736,-473.67204472,0.00047739,30]
[408521089,1773818866761,-1494.67204379,0.00047739,30]
[408521090,1773818866786,-808.89909965,0.00047739,30]
[408521091,1773818866810,-716.37404701,0.00047739,120]
[408521092,1773818866834,-1806.62054205,0.00047739,60]
[408521093,1773818866859,-583.78372975,0.00047739,120]
[408521094,1773818866887,-1204.31679392,0.00047739,120]
[408521095,1773818866912,-100000.0,0.00047739,120]
[408521096,1773818866936,-100000.0,0.00047739,120]
[408521097,1773818867084,-100000.0,0.00047739,120]
[408521098,1773818867108,-318.87,0.00047739,120]
[408521099,1773818867133,-425.42814988,0.00047739,120]
[408521100,1773818867159,-518.03068424,0.00047739,120]
[408521101,1773818867183,-500.0,0.00047739,120]
[408521102,1773818867207,-500.0,0.00047739,120]
[408521103,1773818867232,-581.84607624,0.00047739,120]
[408521104,1773818867257,-500.0,0.00047739,120]
[408521105,1773818867286,-500.0,0.00047739,120]
[408521106,1773818867311,-500.0,0.00047739,120]
[408521107,1773818867336,-500.0,0.00047739,120]
[408521108,1773818867361,-500.0,0.00047739,120]
[408521109,1773818867385,-500.0,0.00047739,120]
[408521110,1773818867409,-500.0,0.00047739,120]
[408521111,1773818867433,-500.0,0.00047739,120]
[408521112,1773818867456,-500.0,0.00047739,120]
[408521113,1773818867480,-500.0,0.00047739,120]
[408521114,1773818867508,-495.16731811,0.00047739,120]
[408521115,1773818867532,-500.0,0.00047739,120]
[408521116,1773818867555,-500.0,0.00047739,120]
[408521117,1773818867578,-500.0,0.00047739,120]
[408521118,1773818867602,-500.0,0.00047739,120]
[408521119,1773818867626,-500.0,0.00047739,120]
[408521120,1773818867651,-500.0,0.00047739,120]
[408521121,1773818867676,-500.0,0.00047739,120]
[408521122,1773818867702,-500.0,0.00047739,120]
[408521123,1773818867727,-500.0,0.00047739,120]
[408521124,1773818867750,-500.0,0.00047739,120]
[408521125,1773818867785,-567.4584937,0.00047739,120]
[408521126,1773818867829,-500.0,0.00047739,120]
[408521127,1773818867871,-500.0,0.00047739,120]
[408521128,1773818867917,-500.0,0.00047739,120]
[408521129,1773818867962,-500.0,0.00047739,120]
[408521130,1773818868006,-500.0,0.00047739,120]
[408521131,1773818868042,-500.0,0.00047739,120]
[408521132,1773818868081,-500.0,0.00047739,120]
[408521133,1773818868119,-251.61951408,0.00047739,120]
[408521134,1773818868156,-158.62982466,0.00047739,120]
[408521135,1773818868196,-267.65999016,0.00047739,120]
[408521136,1773818868233,-156.91442001,0.00047739,120]
[408521137,1773818868294,-154.52081141,0.00047739,120]
[408521138,1773818868343,-500.0,0.00047739,120]
[408521139,1773818868384,-500.0,0.00047739,120]
[408521140,1773818868421,-500.0,0.00047739,120]
[408521141,1773818868462,-500.0,0.00047739,120]
[408521142,1773818868501,-500.0,0.00047739,120]
[408521143,1773818868541,-606.86055726,0.00047739,120]
[408521144,1773818868585,-172.09617154,0.00047739,120]
[408521145,1773818868633,-500.0,0.00047739,30]
[408521146,1773818868675,-500.0,0.00047739,30]
[408521147,1773818868716,-500.0,0.00047739,30]
[408521148,1773818868755,-500.0,0.00047739,30]
[408521149,1773818868793,-320.13500107,0.00047739,30]
[408521150,1773818868829,-1121.0477743,0.00047739,120]
[408521151,1773818868867,-262.44080153,0.00047739,120]
[408521152,1773818868905,-158.93619754,0.00047739,120]
[408521153,1773818868949,-500.0,0.00047739,120]
[408521154,1773818869169,-500.0,0.00047739,120]
[408521155,1773818869193,-500.0,0.00047739,120]
[408521156,1773818869216,-500.0,0.00047739,120]
[408521157,1773818869240,-500.0,0.00047739,120]
[408521158,1773818869264,-500.0,0.00047739,120]
[408521159,1773818869287,-500.0,0.00047739,120]
[408521160,1773818869311,-500.0,0.00047739,120]
[408521161,1773818869336,-500.0,0.00047739,120]
[408521162,1773818869362,-500.0,0.00047739,120]
[408521163,1773818869388,-313.40634428,0.00047739,120]
[408521164,1773818869412,-251.68499668,0.00047739,120]
[408521165,1773818869437,-184.88660881,0.00047739,120]
[408521166,1773818869462,-500.0,0.00047739,120]
[408521167,1773818869492,-500.0,0.00047739,120]
[408521168,1773818869523,-500.0,0.00047739,120]
[408521169,1773818869547,-500.0,0.00047739,120]
[408521170,1773818869572,-500.0,0.00047739,120]
[408521171,1773818869600,-500.0,0.00047739,120]
[408521172,1773818869625,-524.6146124,0.00047739,120]
[408521173,1773818869650,-249.73605774,0.00047739,120]
[408521174,1773818869674,-500.0,0.00047739,120]
[408521175,1773818869698,-500.0,0.00047739,120]
[408521176,1773818869723,-596.33414527,0.00047739,120]
[408521177,1773818869748,-500.0,0.00047739,120]
[408521178,1773818869774,-500.0,0.00047739,120]
[408521179,1773818869799,-500.0,0.00047739,120]
[408521180,1773818869825,-500.0,0.00047739,120]
[408521181,1773818869849,-500.0,0.00047739,120]
[408521182,1773818869875,-500.0,0.00047739,120]
[408521183,1773818869901,-500.0,0.00047739,120]
[408521184,1773818869927,-500.0,0.00047739,120]
[408521185,1773818869962,-500.0,0.00047739,120]
[408521186,1773818869987,-536.94917754,0.00047739,120]
[408521187,1773818870014,-160.36809673,0.00047739,120]
[408521188,1773818870041,-177.80143521,0.00047739,30]
[408521189,1773818870067,-198.92427865,0.00047739,120]
[408521190,1773818870093,-232.98801443,0.00047739,120]
[408521191,1773818870119,-163.56902055,0.00047739,120]
[408521192,1773818870147,-156.11841547,0.00047739,120]
[408521193,1773818870174,-234.76386532,0.00047739,120]
[408521194,1773818870201,-180.9453025,0.00047739,120]
[408521195,1773818870230,-193.79007444,0.00047739,120]
[408521196,1773818870256,-500.0,0.00047739,120]
[408521197,1773818870285,-214.82826422,0.00047739,120]
[408521198,1773818870311,-310.66325046,0.00047739,120]
[408521199,1773818870336,-558.65421408,0.00047739,120]
[408521200,1773818870361,-158.16148673,0.00047739,120]
[408521201,1773818870387,-168.50589494,0.00047739,120]
[408521202,1773818870412,-169.91803201,0.00047739,120]
[408521203,1773818870438,-172.5468241,0.00047739,120]
[408521204,1773818870464,-500.0,0.00047739,120]
[408521205,1773818870488,-500.0,0.00047739,120]
[408521206,1773818870519,-500.0,0.00047739,120]
[408521207,1773818870545,-500.0,0.00047739,120]
[408521208,1773818870570,-341.00642108,0.00047739,120]
[408521209,1773818870596,-806.56,0.00047739,120]
[408521210,1773818870621,-806.56,0.00047739,120]
[408521211,1773818870764,-806.56,0.00047739,120]
[408521212,1773818870792,-806.56,0.00047739,120]
[408521213,1773818870820,-806.56,0.00047739,120]
[408521214,1773818870849,-806.56,0.00047739,120]
[408521215,1773818870882,-806.56,0.00047739,120]
[408521216,1773818870908,-806.56,0.00047739,120]
[408521217,1773818870933,-1260.15,0.00047739,120]
[408521218,1773818870962,-806.56,0.00047739,120]
[408521219,1773818870988,-1260.15,0.00047739,120]
[408521220,1773818871013,-806.56,0.00047739,120]
[408521221,1773818871037,-1260.15,0.00047739,120]
[408521222,1773818871062,-806.56,0.00047739,120]
[408521223,1773818871086,-1260.15,0.00047739,120]
[408521224,1773818871112,-806.56,0.00047739,120]
[408521225,1773818871136,-1260.15,0.00047739,120]
[408521226,1773818871162,-806.56,0.00047739,120]
[408521227,1773818871188,-1260.15,0.00047739,120]
[408521228,1773818871213,-806.56,0.00047739,120]
[408521229,1773818871239,-1260.15,0.00047739,120]
[408521230,1773818871264,-806.56,0.00047739,120]
[408521231,1773818871288,-1260.15,0.00047739,120]
[408521232,1773818871313,-806.56,0.00047739,120]
[408521233,1773818871340,-806.56,0.00047739,120]
[408521234,1773818871365,-1260.15,0.00047739,120]
[408521235,1773818871388,-1260.15,0.00047739,120]
[408521236,1773818871412,-806.56,0.00047739,120]
[408521237,1773818871436,-1260.15,0.00047739,120]
[408521238,1773818871460,-806.56,0.00047739,120]
[408521239,1773818871487,-1260.15,0.00047739,120]
[408521240,1773818871513,-806.56,0.00047739,120]
[408521241,1773818871536,-1260.15,0.00047739,120]
[408521242,1773818871560,-806.56,0.00047739,120]
[408521243,1773818871584,-1260.15,0.00047739,120]
[408521244,1773818871607,-806.56,0.00047739,120]
[408521245,1773818871631,-1260.15,0.00047739,120]
[408521246,1773818871655,-806.56,0.00047739,120]
[408521247,1773818871679,-1260.15,0.00047739,120]
[408521248,1773818871703,-806.72833093,0.00047739,120]
[408521249,1773818871728,-1260.15,0.00047739,120]
[408521250,1773818871753,-1260.15,0.00047739,120]
[408521251,1773818871777,-1260.15,0.00047739,120]
[408521252,1773818871801,-1260.15,0.00047739,120]
[408521253,1773818871824,-1260.15,0.00047739,120]
[408521254,1773818871847,-1260.15,0.00047739,120]
[408521255,1773818871870,-1260.15,0.00047739,120]
[408521256,1773818871895,-1260.17635449,0.00047739,120]
[408521257,1773818871934,-200.88825041,0.00047739,120]
[408521258,1773818871971,-500.0,0.00047739,120]
[408521259,1773818871998,-211.22246113,0.00047739,120]
[408521260,1773818872023,-154.17799881,0.00047739,120]
[408521261,1773818872048,-709.57,0.00047739,120]
[408521262,1773818872073,-709.57,0.00047739,120]
[408521263,1773818872099,-709.57,0.00047739,120]
[408521264,1773818872124,-709.57,0.00047739,120]
[408521265,1773818872147,-709.57,0.00047739,120]
[408521266,1773818872271,-709.57,0.00047739,120]
[408521267,1773818872304,-709.57,0.00047739,120]
[408521268,1773818872328,-709.57,0.00047739,120]
[408521269,1773818872352,-709.57,0.00047739,120]
[408521270,1773818872375,-709.57,0.00047739,120]
[408521271,1773818872398,-709.57,0.00047739,120]
[408521272,1773818872422,-709.57,0.00047739,120]
[408521273,1773818872445,-709.57,0.00047739,120]
[408521274,1773818872469,-709.57,0.00047739,120]
[408521275,1773818872493,-709.57,0.00047739,120]
[408521276,1773818872517,-709.57,0.00047739,120]
[408521277,1773818872541,-709.57,0.00047739,120]
[408521278,1773818872565,-709.57,0.00047739,120]
[408521279,1773818872590,-709.57,0.00047739,120]
[408521280,1773818872614,-709.57,0.00047739,120]
[408521281,1773818872637,-709.57,0.00047739,120]
[408521282,1773818872660,-709.57,0.00047739,120]
[408521283,1773818872684,-709.57,0.00047739,120]
[408521284,1773818872707,-709.74486417,0.00047739,120]
[408521285,1773818872731,-160.29200535,0.00047739,120]
[408521286,1773818872755,-500.0,0.00047739,120]
[408521287,1773818872778,-500.0,0.00047739,120]
[408521288,1773818872802,-510.29260469,0.00047739,120]
[408521289,1773818872827,-205.89552527,0.00047739,120]
[408521290,1773818872851,-158.38238059,0.00047739,120]
[408521291,1773818872876,-184.30598611,0.00047739,120]
[408521292,1773818872900,-158.44740371,0.00047739,120]
[408521293,1773818872924,-500.0,0.00047739,120]
[408521294,1773818872951,-500.0,0.00047739,120]
[408521295,1773818872975,-572.04846632,0.00047739,120]
[408521296,1773818873003,-500.0,0.00047739,120]
[408521297,1773818873028,-203.57595381,0.00047739,120]
[408521298,1773818873052,-500.0,0.00047739,120]
[408521299,1773818873077,-500.0,0.00047739,120]
[408521300,1773818873102,-500.0,0.00047739,120]
[408521301,1773818873126,-500.0,0.00047739,120]
[408521302,1773818873151,-500.0,0.00047739,120]
[408521303,1773818873175,-500.0,0.00047739,120]
[408521304,1773818873200,-500.0,0.00047739,120]
[408521305,1773818873226,-430.84988703,0.00047739,120]
[408521306,1773818873255,-500.0,0.00047739,120]
[408521307,1773818873279,-500.0,0.00047739,120]
[408521308,1773818873303,-500.0,0.00047739,120]
[408521309,1773818873327,-199.77572569,0.00047739,120]
[408521310,1773818873352,-190.97179809,0.00047739,120]
[408521311,1773818873377,-500.0,0.00047739,120]
[408521312,1773818873402,-500.0,0.00047739,120]
[408521313,1773818873427,-500.0,0.00047739,120]
[408521314,1773818873452,-500.0,0.00047739,120]
[408521315,1773818873476,-500.0,0.00047739,120]
[408521316,1773818873500,-500.0,0.00047739,120]
[408521317,1773818873526,-500.0,0.00047739,120]
[408521318,1773818873551,-500.0,0.00047739,120]
[408521319,1773818873576,-500.0,0.00047739,120]
[408521320,1773818873708,-500.0,0.00047739,120]
[408521321,1773818873736,-500.0,0.00047739,120]
[408521322,1773818873761,-500.0,0.00047739,120]
[408521323,1773818873786,-500.0,0.00047739,120]
[408521324,1773818873814,-500.0,0.00047739,120]
[408521325,1773818873840,-500.0,0.00047739,120]
[408521326,1773818873865,-500.0,0.00047739,120]
[408521327,1773818873890,-500.0,0.00047739,120]
[408521328,1773818873917,-184.00141847,0.00047739,120]
[408521329,1773818873946,-500.0,0.00047739,120]
[408521330,1773818873971,-500.0,0.00047739,120]
[408521331,1773818873998,-580.88460587,0.00047739,120]
[408521332,1773818874023,-368.02494834,0.00047739,120]
[408521333,1773818874052,-169.74749799,0.00047739,120]
[408521334,1773818874077,-190.2287164,0.00047739,120]
[408521335,1773818874102,-524.50337613,0.00047739,30]
[408521336,1773818874128,-284.3414334,0.00047739,120]
[408521337,1773818874153,-196.33509434,0.00047739,120]
[408521338,1773818874178,-252.79969487,0.00047739,120]
[408521339,1773818874202,-264.67093285,0.00047739,120]
[408521340,1773818874227,-550.47023287,0.00047739,120]
[408521341,1773818874254,-270.1963059,0.00047739,120]
[408521342,1773818874279,-169.11226995,0.00047739,120]
[408521343,1773818874302,-289.21199638,0.00047739,120]
[408521344,1773818874327,-210.98945984,0.00047739,120]
[408521345,1773818874353,-585.74821084,0.00047739,120]
[408521346,1773818874376,-500.0,0.00047739,120]
[408521347,1773818874400,-500.0,0.00047739,120]
[408521348,1773818874424,-500.0,0.00047739,120]
[408521349,1773818874449,-500.0,0.00047739,120]
[408521350,1773818874473,-500.0,0.00047739,120]
[408521351,1773818874501,-266.49306163,0.00047739,60]
[408521352,1773818874525,-500.0,0.00047739,120]
[408521353,1773818874549,-500.0,0.00047739,120]
[408521354,1773818874575,-500.0,0.00047739,120]
[408521355,1773818874609,-500.0,0.00047739,120]
[408521356,1773818874634,-500.0,0.00047739,120]
[408521357,1773818874659,-199.89788107,0.00047739,120]
[408521358,1773818874684,-500.0,0.00047739,120]
[408521359,1773818874709,-500.0,0.00047739,120]
[408521360,1773818874734,-500.0,0.00047739,120]
[408521361,1773818874760,-500.0,0.00047739,120]
[408521362,1773818874786,-1698.85,0.00047739,120]
[408521363,1773818874811,-1698.85,0.00047739,120]
[408521364,1773818874836,-500.0,0.00047739,120]
[408521365,1773818874860,-1698.85,0.00047739,120]
[408521366,1773818874886,-271.74206453,0.00047739,120]
[408521367,1773818874911,-168.88102876,0.00047739,120]
[408521368,1773818874951,-1698.85,0.00047739,120]
[408521369,1773818874979,-1698.85,0.00047739,120]
[408521370,1773818875006,-1698.85,0.00047739,120]
[408521371,1773818875032,-1698.85,0.00047739,120]
[408521372,1773818875195,-1698.85,0.00047739,120]
[408521373,1773818875228,-1698.85,0.00047739,120]
[408521374,1773818875255,-500.0,0.00047739,120]
[408521375,1773818875288,-1698.85,0.00047739,120]
[408521376,1773818875316,-500.0,0.00047739,120]
[408521377,1773818875343,-1698.85,0.00047739,120]
[408521378,1773818875371,-500.0,0.00047739,120]
[408521379,1773818875397,-1698.85,0.00047739,120]
[408521380,1773818875425,-226.12139123,0.00047739,120]
[408521381,1773818875452,-1698.85,0.00047739,120]
[408521382,1773818875478,-1698.85,0.00047739,120]
[408521383,1773818875503,-1698.85,0.00047739,120]
[408521384,1773818875530,-1698.85,0.00047739,120]
[408521385,1773818875557,-374.21481155,0.00047739,120]
[408521386,1773818875584,-1698.85,0.00047739,120]
[408521387,1773818875609,-1698.85,0.00047739,120]
[408521388,1773818875634,-1698.85,0.00047739,120]
[408521389,1773818875660,-1698.85,0.00047739,120]
[408521390,1773818875686,-1698.85,0.00047739,120]
[408521391,1773818875716,-1698.85,0.00047739,120]
[408521392,1773818875742,-1698.85,0.00047739,120]
[408521393,1773818875768,-1699.07562242,0.00047739,120]
[408521394,1773818875795,-295.09623772,0.00047739,120]
[408521395,1773818875823,-500.0,0.00047739,30]
[408521396,1773818875848,-500.0,0.00047739,30]
[408521397,1773818875875,-500.0,0.00047739,30]
[408521398,1773818875900,-500.0,0.00047739,30]
[408521399,1773818875926,-500.0,0.00047739,30]
[408521400,1773818875955,-500.0,0.00047739,30]
[408521401,1773818875980,-162.84028849,0.00047739,120]
[408521402,1773818876008,-323.12703477,0.00047739,120]
[408521403,1773818876035,-500.0,0.00047739,30]
[408521404,1773818876060,-500.0,0.00047739,30]
[408521405,1773818876085,-196.83875731,0.00047739,120]
[408521406,1773818876110,-500.0,0.00047739,30]
[408521407,1773818876136,-500.0,0.00047739,30]
[408521408,1773818876161,-527.78445419,0.00047739,30]
[408521409,1773818876186,-210.37159298,0.00047739,120]
[408521410,1773818876211,-557.68124017,0.00047739,120]
[408521411,1773818876236,-258.44443411,0.00047739,120]
[408521412,1773818876261,-500.0,0.00047739,120]
[408521413,1773818876286,-500.0,0.00047739,120]
[408521414,1773818876313,-561.57877921,0.00047739,120]
[408521415,1773818876337,-500.0,0.00047739,120]
[408521416,1773818876362,-500.0,0.00047739,120]
[408521417,1773818876387,-202.03040438,0.00047739,120]
[408521418,1773818876412,-500.0,0.00047739,120]
[408521419,1773818876436,-500.0,0.00047739,120]
[408521420,1773818876460,-172.92417547,0.00047739,120]
[408521421,1773818876484,-500.0,0.00047739,120]
[408521422,1773818876508,-500.0,0.00047739,120]
[408521423,1773818876644,-500.0,0.00047739,120]
[408521424,1773818876670,-500.0,0.00047739,120]
[408521425,1773818876695,-500.0,0.00047739,120]
[408521426,1773818876718,-500.0,0.00047739,120]
[408521427,1773818876742,-500.0,0.00047739,120]
[408521428,1773818876768,-156.93399176,0.00047739,120]
[408521429,1773818876794,-500.0,0.00047739,120]
[408521430,1773818876820,-500.0,0.00047739,120]
[408521431,1773818876844,-500.0,0.00047739,120]
[408521432,1773818876868,-500.0,0.00047739,120]
[408521433,1773818876892,-500.0,0.00047739,120]
[408521434,1773818876915,-500.0,0.00047739,120]
[408521435,1773818876941,-500.0,0.00047739,120]
[408521436,1773818876965,-500.0,0.00047739,120]
[408521437,1773818876990,-500.0,0.00047739,120]
[408521438,1773818877013,-500.0,0.00047739,120]
[408521439,1773818877038,-500.0,0.00047739,120]
[408521440,1773818877062,-500.0,0.00047739,120]
[408521441,1773818877086,-595.44867247,0.00047739,120]
[408521442,1773818877111,-635.95228664,0.00047739,120]
[408521443,1773818877135,-502.29,0.00047739,120]
[408521444,1773818877160,-502.29,0.00047739,120]
[408521445,1773818877186,-502.29,0.00047739,120]
[408521446,1773818877210,-502.29,0.00047739,120]
[408521447,1773818877234,-502.29,0.00047739,120]
[408521448,1773818877258,-177.38141057,0.00047739,120]
[408521449,1773818877283,-502.29,0.00047739,120]
[408521450,1773818877307,-502.29,0.00047739,120]
[408521451,1773818877333,-502.29,0.00047739,120]
[408521452,1773818877358,-381.46834124,0.00047739,120]
[408521453,1773818877383,-502.29,0.00047739,120]
[408521454,1773818877407,-502.29,0.00047739,120]
[408521455,1773818877432,-502.29,0.00047739,120]
[408521456,1773818877456,-188.09818685,0.00047739,120]
[408521457,1773818877480,-502.29,0.00047739,120]
[408521458,1773818877505,-502.29,0.00047739,120]
[408521459,1773818877529,-502.29,0.00047739,120]
[408521460,1773818877553,-502.29,0.00047739,120]
[408521461,1773818877577,-237.25096297,0.00047739,120]
[408521462,1773818877601,-500.0,0.00047739,120]
[408521463,1773818877627,-512.45460519,0.00047739,120]
[408521464,1773818877653,-240.4820121,0.00047739,120]
[408521465,1773818877679,-502.29,0.00047739,120]
[408521466,1773818877709,-502.29,0.00047739,120]
[408521467,1773818877733,-502.29,0.00047739,120]
[408521468,1773818877757,-502.29,0.00047739,120]
[408521469,1773818877782,-502.29,0.00047739,120]
[408521470,1773818877806,-502.29,0.00047739,120]
[408521471,1773818877830,-502.29,0.00047739,120]
[408521472,1773818877959,-502.29,0.00047739,120]
[408521473,1773818877987,-502.51957876,0.00047739,120]
[408521474,1773818878011,-500.0,0.00047739,120]
[408521475,1773818878036,-500.0,0.00047739,120]
[408521476,1773818878061,-499.7901,0.00047739,120]
[408521477,1773818878086,-188.06540951,0.00047739,120]
[408521478,1773818878112,-222.21098483,0.00047739,120]
[408521479,1773818878139,-153.47891967,0.00047739,120]
[408521480,1773818878164,-4768.27,0.00047739,30]
[408521481,1773818878191,-4768.27,0.00047739,30]
[408521482,1773818878216,-4768.27,0.00047739,30]
[408521483,1773818878241,-4768.27,0.00047739,30]
[408521484,1773818878267,-4768.27,0.00047739,30]
[408521485,1773818878292,-4768.27,0.00047739,30]
[408521486,1773818878318,-4768.27,0.00047739,30]
[408521487,1773818878343,-4768.27,0.00047739,30]
[408521488,1773818878368,-4768.27,0.00047739,30]
[408521489,1773818878393,-4768.27,0.00047739,30]
[408521490,1773818878418,-4768.27,0.00047739,30]
[408521491,1773818878443,-152.43941163,0.00047739,120]
[408521492,1773818878468,-4768.27,0.00047739,30]
[408521493,1773818878494,-4768.27,0.00047739,30]
[408521494,1773818878519,-500.0,0.00047739,120]
[408521495,1773818878545,-4768.27,0.00047739,30]
[408521496,1773818878571,-500.0,0.00047739,120]
[408521497,1773818878595,-4768.27,0.00047739,30]
[408521498,1773818878620,-301.12557857,0.00047739,120]
[408521499,1773818878646,-500.0,0.00047739,120]
[408521500,1773818878672,-4768.27,0.00047739,30]
[408521501,1773818878697,-636.75853812,0.00047739,120]
[408521502,1773818878723,-4768.27,0.00047739,30]
[408521503,1773818878749,-4768.27,0.00047739,30]
[408521504,1773818878776,-4768.27,0.00047739,30]
[408521505,1773818878802,-4768.27,0.00047739,30]